Workbook

Sheet Guidance
B2: Guidance for the completion of the Analysis of Revenue Balances form.
B4: THIS FORM SHOULD ONLY BE USED FOR YOUR YEAR END SUBMISSION TO SCHOOLS FINANCIAL SERVICES.
B6: Instructions for completion.
B8: Enter the last four digits of you DfE number in cell E1 (the green box), your school name will be displayed.
B9: In B (cell E6) the year end forecast you submitted as part of the Nine Months Monitoring return will pre-populate.
B10: In C (cell E7) the difference between your Nine Months Monitoring year end forecast and your Closedown year end position will be calculated.
B11: (This will always be the same as B until you complete A (cell E5))
B12: In D (cell E13) your Budget Control Mechanism (BCM) limit based on your March Statement of Account (SoA) is displayed.
B13: The BCM is worked out by adding together your March SoA totals for CFR codes I01, I02, I03, I05 and I18.
B14: This total is then multiplied by the allowable threshold your school type attracts. All of this information is held in the background of this form.
B16: Section 1
B18: From your Closedown FMS Reconciliation Report, enter the Actual Revenue Current Position figure into A (cell E5)
B19: This will normally be Fund 01, but if you have multiple funds, you will need to add these together. Remember Revenue Only.
B20: If you have a surplus balance enter the figure with a leading minus. If you enter a positive figure, a prompt will tell you "You are in Deficit".
B21: If you enter the figure in A (cell E5) with a leading minus, the box will turn red. At this stage this is expected, it means the form is not complete.
B23: In C (cell E7) the difference between your Nine Months Monitoring year end forecast and your Closedown year end position is displayed.
B25: If Row 8 turns green and Row 9 turns black, the difference between your Nine Months Monitoring forecast and your Closedown position is within limits.
B26: If they remain yellow and clear, you need to add a brief comment to explain the difference in Row 9.
B28: Section 2
B30: There is no input required in this section as all cells are pre-populated.
B32: Section 2.1 and Section 4 - Only applicable if you exceed your BCM limit
B34: J (cell E20) displays the balance of the amount over the BCM limit that has not been allocated across F to I.
B35: Please read the BCM guidance that explains the 4 allowable criteria and allocate the excess funds accordingly
B36: A prompt box will appear to the right. An amber box indicates you have not allocated enough across F to I, a red box indicates you have allocated too much.
B37: When F to I equal the amount over BCM, there will be no amber or red box and J (cell E22) will be zero. This section is now balanced.
B38: D (cell E21) and A (cell E22) are populated from Section 1 & 2 above.
B39: Whichever rows you have used from (F to I), a prompt will appear to the right indicating which sections of Section 4 below need to be completed.
B40: Once the figures entered into Sections 4.1 to 4.4 equal the corresponding figures in F to I, the prompts will disappear.
B42: Section 3
B44: The B01 to B06 references are for DfE purposes only
B45: J (cell E24) is populated from section 2.1, if you have not exceeded your BCM limit, this cell will be zero.
B46: K (cell E25) is for your Community Focussed balance only. This figure is taken from the Additional Funding form, B06 (c/f) (cell G27)
B47: Alternatively this can be calculated by the following formula (Previous years B06 rollover + I16 + I17 - E31 - E32 from you Closedown I & E)
B49: The remaining revenue rollover from A (cell E22) now needs to be split between Committed L (Cell E28) and Non Committed M (cell E29)
B50: N (cell E28) is the total of J to M, this must equal A (cell E22). A prompt will appear to the right of N indicating if you need to allocate more or less to equal A.
B52: When there are no prompts visible and "CORRECT" appears to the right of N, the form is complete.
B54: General reminder
B55: If you require assistance with clearing any message prompts, please contact the Returns & Compliance team.
B56: When this form has been completed and all prompt messages have been addressed, email the saved excel formatted file to:
D57: schoolfinancereturns@theeducationpeople.org

Sheet BCM Criteria
B2: Schools Financial Services Guidance
B3: Balance Control Mechanism (BCM) Criteria - Which category to use?
B5: Introduction
B7: The Schools’ Funding Forum fundamental principle underpinning the BCM is that the funding received for the period (financial year April to March), which is predicated on the cohort of pupils at the school during that period, should be spent on those pupils during that period. | Q7: DD
B9: The allowable BCM Thresholds (12% - Primary, Special and PRU and 7.5% - Secondary) have been set to recognise the need of a financial tolerance, to enable an appropriate resource to ensure a smooth transition, when circumstances within the school change, for example a falling roll. | Q9: DD
B11: BCM Allowable Criteria
B13: There are four accepted criteria that allow schools to carry forward funding in excess of their Balance Control Mechanism (BCM) into the next financial year: Capital Projects, Holding Funds on Behalf of Other Schools, Late Allocations and Other Grants & Payments. Outlined below are details of each of the criteria to assist schools who are over their BCM limit in completing the 9 month and Year end returns. | Q13: DDD
B15: Capital Project.
B17: · | C17: Schools can be over the BCM if they plan to make a revenue to capital contribution for a future capital project that is planned for the following year.
B19: · | C19: The returns information must include details of the capital project as well as the expected completion date
B21: · | C21: The full cost of the project is required, as well as details of how much of the excess BCM will be used to fund the project
B23: · | C23: Copy invoices will be required on completion of the project
B25: · | C25: Examples: Extension to the school building
B27: Funds Held on Behalf of Other Schools.
B29: · | C29: Schools can be over the BCM if they are holding funds on behalf of other schools
B31: · | C31: The returns information must include details of what the funds are being used for
B33: · | C33: The returns information must include the current balance of the held funds and the date by which they need to be spent
B35: · | C35: Examples: Collaborative Funding with Partnership School
B37: Late Allocation.
B39: · | C39: A Late Allocation is funding that has been received in the latter part of the year that was not included within the original budget or included as additional income to the yearend forecast within the budget monitoring. | Q39: DD
B41: · | C41: To be allowable, the Late Allocation must be unexpected new funding that the school has not had reasonable time in which to spend before the end of the financial year, and it has therefore been decided that only funding received between 1st December and 31st March will be considered e.g., an unexpected donation to the school. | Q41: DDD
B43: · | C43: Any unexpected funding that is received prior to 1st December will not be allowable as a Late Allocation. | Q43: D
B45: · | C45: Funding that the school know they are due to receive will not be allowable as a Late Allocation even if this funding is not paid till a later date e.g., The 2nd instalment of Covid catch up paid in March 2021 was not counted as a Late Allocation because schools had been advised of the grant and it should have been included in the monitoring year end forecast. | Q45: DDD
B47: · | C47: High Needs Funding (HNF) and whether it can be included within the Late Allocation criteria:
D49: If HNF has been applied for in November for example, and confirmation that the school will receive funding has been given by 1st December, but the funding is not received into the school bank account until February/March Advance, then this will not be counted as a Late Allocation - as the advised expected income should have been included in the monitoring year end forecast. | Q49: DDD
D51: However, if the school has a newly assessed pupil with unconfirmed funding or an annual pupil renewal with unconfirmed backpay, it is reasonable to not have included any additional funding into the monitoring year-end forecasts as the funding claimed cannot be assured. Therefore, in these types of circumstances, the funding will be allowable under Late Allocations if it is paid after December 1st. | Q51: DDD
B53: · | C53: Each year there may be new funding streams. Depending on the timing of the Government announcement, a decision will be made if the funding will be considered a Late Allocation or not. Past examples have been Additional FSM Supplementary grant & Classcare Scheme Refund | Q53: DD
B55: Other Grants and Payments.
B57: In general, schools are expected to spend funding received in each financial year on the pupils attending in that period. Please see below for details of common grants to ascertain whether they are eligible to meet the criteria for allowable excess BCM. For some grants that are paid on an academic year, part (or in some cases all) of the funding would be allowable under the excess BCM criteria. Schools should read the Government Conditions of Grant for each grant to ensure the funding is spent as appropriate and in a timely fashion. | Q57: DDDD
B59: · | C59: UIFSM is paid on an academic year. The funding is unique due to an adjustment being made each July to ensure payments made up to the preceding March are correct, with schools using a Yearend adjustment at Closedown to balance the funds received to date. Therefore, any excess UIFSM funding is not allowable under the excess BCM criteria as the funding is a reimbursement for costs based across 2 census data. | Q59: DDD
B61: · | C61: HNF E3 is paid monthly. Any unspent HNF is not allowable under the excess BCM criteria as it should be spent on each eligible pupil in that financial year to meet their agreed needs. Please refer to paragraph on HNF in Late Allocation section of this document for further clarity. | Q61: DD
B63: · | C63: Pupil Premium is paid to schools in 12 equal instalments. The 2021-22 Conditions of Grant state that the grant does not have to be completely spent by schools in the financial year beginning 1 April 2021; some or all of it may be carried forward to future financial years. Any funding that is carried forward must be spent according to the conditions in this document. | Q63: DDD
B65: · | C65: Academic Grants e.g., PE and Sports Grant. When grants are paid on an academic year (September - August), the school usually receives 2 instalments – one to cover the 7-month period September to March and a second to cover the 5-month period April to August, so crossing over the school financial year in April. This means that the April to August (5/12ths) payment is the second instalment of the previous academic year, and the September to March payment (7/12ths) is the first instalment of the current academic year. | Q65: DDDD
C67: Schools should be spending the April to August payment by the August of that year because this is the final instalment for the current academic year’s funding – this portion of the funding will not be allowable under the ‘Other Grants & Payment’ criteria as a reason to be over BCM. Note: If the 5/12ths second instalment has not been spent, then it will form part of the allowable BCM threshold. | Q67: DDD
C69: For the September to March payment (7/12th), schools have until the August of the following year to spend it. This portion of the funding can be rolled forward into the next financial year and is allowable under the criteria for excess BCM. | Q69: DD
C71: Please note - due to Covid there have been extensions to the time frame of spending the PE & Sports Grant and schools have until July 2022 to spend funding from the 2019-20 and 2020-21 academic years. | Q71: DD
B73: · | C73: We are aware that some Academic grants need the second instalment set aside for specific expenditure e.g., Teaching School funding, where funding is received in advance to pay for April to August salaries for the next financial year and this will be allowable as excess BCM. | Q73: DD

Sheet Form
A1: Version March 2024 | B1: This form is to be used as part of the 2023-24 Year End returns only | C1: DfE No: | F1: =VLOOKUP(E1,Lookup!A:D,4,0) ->  | H1: =IF(E1=0,0,1) -> 0 | L1: DD | M1: 2024-03-31 | N1: =DAY(M1) -> 31 | O1: =MONTH(M1) -> 3 | P1: =DATE(O3,O1,N1) -> 2025-03-31 | Q1: =DATE(N3,O2,N2) -> 2024-04-01
A2: School Name: | B2: =IFERROR(VLOOKUP(E1,Lookup!A:N,2,FALSE),"") ->  | F2: =IF(Lookup!R7<>"","Links have not been removed","") ->  | M2: 2024-04-01 | N2: =DAY(M2) -> 1 | O2: =MONTH(M2) -> 4
A3: Analysis of Year End Revenue Balances | M3: =TODAY() -> 2024-03-20 | N3: =YEAR(TODAY()) -> 2024 | O3: =YEAR(TODAY())+1 -> 2025
A4: Section 1 - Total Revenue Rollover and comparison to Nine Month Forecast | D4: Row | E4: Amount £ / pp
A5: Total Revenue Funds rollover c/f (Final Reconciliation Report, Actual Column, Current position) For surplus balance enter as a negative (leading minus) / For year end deficit enter as a positive | D5: A | F5: =IF(E5>0,"You are showing a Year End Revenue Deficit","") ->  | L5: DD
A6: =IFERROR("Year end forecast figure as at nine month monitoring return"&IF(OR(E1="",E5=""),"",IF(E6<0," was a surplus"," was a deficit")),"") -> Year end forecast figure as at nine month monitoring return | D6: B | E6: =IFERROR(ROUND(VLOOKUP(E1,Lookup!A:N,14,FALSE),2),"") ->  | L6: DD
A7: Difference between nine months forecast and actual Year End figures | D7: C | E7: =IFERROR(ROUND((E5-E6),2),"") ->  | L7: DD
A8: =IF(E5="","",IFERROR(IF(VLOOKUP(E1,Lookup!A:Q,17,FALSE)="Within Tolerance","The figure in Row C is less than £10,000 or 15% of the figure is Row A therefore NO explanation is required below","The figure in Row C of £"&IF(E7>0,TEXT(E7,"#,##0.00"),TEXT(-E7,"#,##0.00"))&" is more than we would expect, please enter a brief description below to explain the reason."),"")) -> 
A11: Section 2 - Budget Control Mechanism - Detailed breakdown of Revenue Rollover | D11: Row | E11: Amount £ / pp | L11: DD
A12: Total Revenue Funds rollover c/f from Row A above | D12: A | E12: =E5 -> 0 | L12: DD
A13: =IFERROR(IF(AND(E1>1100,E1<2000),"Please enter your total income for 2023-24 in cell F13 highlighted in yellow, your BCM figure is 12% of your income",("Allowable Balance Control Mechanism (BCM) (March Statement of account totals for (I01+I02+I03+I05+I18) * "&TEXT(VLOOKUP(E1,Lookup!A:E,5,FALSE),"##.##%")&")")),"Allowable Balance Control Mechanism (BCM)") -> Allowable Balance Control Mechanism (BCM) | D13: D | E13: =IFERROR(IF(AND(E1>1100,E1<2000),F13*12%,ROUND(VLOOKUP(E1,Lookup!A:N,3,FALSE),2)),"") ->  | L13: DD
A14: =IF(E14>0,"You have exceeded your allowable Balance Control Mechanism figure (BCM)","You are within your allowable Balance Control Mechanism figure (BCM)") -> You are within your allowable Balance Control Mechanism figure (BCM) | D14: E | E14: =IFERROR(ROUND(IF(E5+E13>0,0,-(E5+E13)),2),0) -> 0 | L14: DD
A15: =IF(E14=0,"Section 2.1 - This section is not applicable as you are not over your BCM allowable.","Section 2.1 BCM breakdown - complete rows F to I (total must not be greater than the amount you are over your BCM by ("&TEXT(ROUND(E14,2),"£#,###.00")&"))") -> Section 2.1 - This section is not applicable as you are not over your BCM allowable. | L15: DD
A16: Revenue contribution to Capital project (planned for NEW year) Provide detail below in section 4.1 | D16: F | F16: =IF(AND(E16<>0,SUM(C33:C36)=0),"Details are required in Section 4.1 BCM breakdown below","") ->  | H16: =IFERROR(IF(ROUND((SUM(E16:E19)-E14),2)=0,"",IF(ROUND(E14-SUM(E16:E19),2)<0,"The current total of Rows F to I is more than the amount over your BCM by "&TEXT(ROUND((E14-SUM(E16:E19)),2),"£#,###.00")&CHAR(10)&CHAR(10)&"You need to ensure that this total is equal to the amount over BCM (Row E).","The current total of Rows F to I is less than the amount over your BCM by "&TEXT(ROUND((E14-SUM(E16:E19)),2),"£#,###.00")&CHAR(10)&CHAR(10)&"This amount may be subject to clawback (Row J).")),"") ->  | L16: DD
A17: Funding held on behalf of other schools Provide detail below in section 4.2 | D17: G | F17: =IF(AND(E17<>0,SUM(C39:C42)=0),"Details are required in Section 4.2 below","") ->  | L17: DD
A18: Late allocations Provide detail below in section 4.3 | D18: H | F18: =IF(AND(E18<>0,SUM(C45:C48)=0),"Details are required in Section 4.3 below","") ->  | L18: DD
A19: Other grant income and funding sources Provide detail below in section 4.4 | D19: I | F19: =IF(AND(E19<>0,SUM(C50:C53)=0),"Details are required in Section 4.4 below","") ->  | L19: DD
A20: This amount over your BCM may be subject to Clawback. | D20: J | E20: =ROUND(SUM(E16:E19),2) -> 0 | L20: DD
A21: Allowable Balance Control Mechanism (BCM) from Row D above | D21: D | E21: =ROUND(E13,2) ->  | L21: DD
A22: Total Revenue Funds in Section 2.1 | D22: A | E22: =ROUND(SUM(E20:E21),2) ->  | F22: =IF(E14=0,"",IF(ROUND(SUM(E16:E19)+E21+E5,2)<0,"You have "&TEXT(ROUND((SUM(E16:E19)+E21+E5)*-1,2),"£#,###.00")&" that may be subject to clawback",IF(ROUND(SUM(E16:E19)+E21+E5,2)>0,"You have allocated "&TEXT(ROUND((E5+SUM(E16:E21)),2),"£#,###.00")&" too much",""))) ->  | L22: DD
A23: Section 3 - Total Revenue Rollover breakdown - The DfE require this breakdown | L23: DD
A24: Total of breakdown of amount over BCM from above (Rows F to I above) (pre-populated) | C24: B01 | D24: J | E24: =ROUND(SUM(E16:E19),2) -> 0 | L24: DD
A25: Community Focussed School Balance c/f figure - if applicable (from Section 3 of the Additional supporting information Closedown form) | C25: B06 c/f | D25: K | E25: 0 | L25: DD
A26: The remaining Committed element from Row A above. | C26: B01 | D26: L | L26: DD
A27: The Uncommitted element from Row A above If the figure in row A is a deficit, enter the whole amount here with a leading minus | C27: B02 | D27: M | L27: DD
A28: Total of rows J to M - must match row A above | D28: N | E28: =ROUND(SUM(E24:E27),2) -> 0 | F28: =IF(H1=0,"",IF(-E28=E5,"CORRECT","This amount must match Row A")) ->  | H28: =IF(E5+E28<0,"You still have "&TEXT(ROUND((E5+E28)*-1,2),"£#,###.00")&" to allocate",IF(E5+E28>0,"You have allocated "&TEXT(ROUND((E5+E28),2),"£#,###.00")&" too much","")) ->  | L28: DD
A30: =IF(E14=0,"","Section 4.1 BCM breakdown - The section below relates to Section 2.1 above") -> 
A31: Section 4.1 Analysis of row F - brief description of Revenue contribution to Capital project (planned for NEW year)
A32: Evidence should be retained in the school | C32: Amount £/pp | E32: Date to be spent by
A33: 1 | F33: =IF(E16=SUM(C33:D36),"","The total in this section must equal the total of row F ("&TEXT(ROUND(E16,2),"£#,###.00")&")") -> 
A34: 2
A35: 3
A36: 4
A37: Section 4.2 Analysis of row G - Funding held on behalf of other schools
A38: Evidence should be retained in the school | C38: Amount £/pp | E38: Date to be spent by
A39: 1 | F39: =IF(E17=SUM(C39:D42),"","The total in this section must equal the total of row G ("&TEXT(ROUND(E17,2),"£#,###.00")&")") -> 
A40: 2
A41: 3
A42: 4
A43: Section 4.3 Analysis of row H - brief description of Late allocations
A44: Evidence should be retained in the school | C44: Amount £/pp | E44: Date to be spent by
A45: 1 | F45: =IF(E18=SUM(C45:D48),"","The total in this section must equal the total of row H ("&TEXT(ROUND(E18,2),"£#,###.00")&")") -> 
A46: 2
A47: 3
A48: 4
A49: Section 4.4 Analysis of row I - brief description of other grant income and funding sources
A50: Evidence should be retained in the school | C50: Amount £/pp | E50: Date to be spent by
A51: 1 | F51: =IF(E19=SUM(C51:D54),"","The total in this section must equal the total of row I ("&TEXT(ROUND(E19,2),"£#,###.00")&")") -> 
A52: 2
A53: 3
A54: 4

Sheet Lookup (hidden)
F1: March 2023 Advance figures | K1: Kelsi / Invoice | M1: Year End | N1: 9 Months | Q1: Tolerance | R1: Tolerance
A2: DfE | B2: school name | C2: BCM | D2: Phase | E2: % | F2: I01-01 and -50 | G2: I02-01 | H2: I03-01 | I2: I05-01 | J2: I18-01 | K2: Rates | L2: Total | M2: Actual | N2: YE Forecast | O2: Variance | P2: % var | Q2: 10000 | R2: 0.15
A3: 1001 | B3: Northfleet Nursery School | C3: =IF(D3=1,L3*0.12,IF(D3=3,L3*0.085,L3*0.075)) -> 72099.918 | D3: 1 | E3: =IF(D3=1,0.12,IF(D3=4,0.085,0.075)) -> 0.12 | F3: 578719.52 | G3: 0 | H3: 22113.13 | I3: 0 | J3: 0 | K3: 0 | L3: =SUM(F3:K3) -> 600832.65 | M3: =Form!$E$5 -> 0 | N3: -63828.69 | O3: =N3-M3 -> -63828.69 | P3: =O3/M3 ->  | Q3: =IF(AND(O3<$Q$2,O3>-$Q$2),"Within Tolerance",IF(AND(P3<$R$2,P3>-$R$2),"Within Tolerance",O3)) -> 
A4: 1123 | B4: The Rosewood School | C4: =IF(D4=1,L4*0.12,IF(D4=3,L4*0.085,L4*0.075)) -> 429268.5576 | D4: 1 | E4: 0.12 | F4: 1558233.18 | G4: 0 | H4: 2019004.8 | I4: 0 | J4: 0 | K4: 0 | L4: 3577237.98 | M4: =Form!$E$5 -> 0 | N4: -422675.489 | O4: =N4-M4 -> -422675.489 | P4: =O4/M4 ->  | Q4: =IF(AND(O4<$Q$2,O4>-$Q$2),"Within Tolerance",IF(AND(P4<$R$2,P4>-$R$2),"Within Tolerance",O4)) -> 
A5: 1124 | B5: Birchwood PRU | C5: 66869.3268 | D5: 1 | E5: 0.12 | F5: 398766.4 | G5: 0 | H5: 156877.99 | I5: 1600 | J5: 0 | K5: 0 | L5: 557244.39 | M5: =Form!$E$5 -> 0 | N5: -118753.63 | O5: -118753.63
A6: 1127 | B6: Maidstone and Malling Alternative Provision | C6: 127635.9864 | D6: 1 | E6: 0.12 | F6: 765268.72 | G6: 0 | H6: 295564.5 | I6: 2800 | J6: 0 | K6: 0 | L6: 1063633.22 | M6: =Form!$E$5 -> 0 | N6: -135739.35 | O6: -135739.35
A7: 1128 | B7: Thanet & Dover AC PRU | C7: 198922.1976 | D7: 1 | E7: 0.12 | F7: 1184729.3 | G7: 0 | H7: 469355.68 | I7: 3600 | J7: 0 | K7: 0 | L7: 1657684.98 | M7: =Form!$E$5 -> 0 | N7: -208579.99 | O7: -208579.99
A8: 1129 | B8: West Kent AC Pru (Ton, Tun Wells & Sev) | C8: 120777.5352 | D8: 1 | E8: 0.12 | F8: 718071.83 | G8: 0 | H8: 288007.63 | I8: 400 | J8: 0 | K8: 0 | L8: 1006479.46 | M8: =Form!$E$5 -> 0 | N8: -403239.66 | O8: -403239.66
A9: 2000 | B9: St John's CE School | C9: 339699.0264 | D9: 1 | E9: 0.12 | F9: 2303796.95 | G9: 0 | H9: 126424.27 | I9: 316755 | J9: 59273 | K9: 24576 | L9: 2830825.22 | M9: =Form!$E$5 -> 0 | N9: -14415.63 | O9: -14415.63
A10: 2002 | B10: Repton Manor | C10: 299869.938 | D10: 1 | E10: 0.12 | F10: 2137584.57 | G10: 0 | H10: 136542.58 | I10: 138730 | J10: 75409 | K10: 10650 | L10: 2498916.15 | M10: =Form!$E$5 -> 0 | N10: -258930.44 | O10: -258930.44
A11: 2065 | B11: Discovery School, The | C11: 394498.9164 | D11: 1 | E11: 0.12 | F11: 2792308 | G11: 0 | H11: 203809.97 | I11: 81035 | J11: 135074 | K11: 75264 | L11: 3287490.97 | M11: =Form!$E$5 -> 0 | N11: -36693.69 | O11: -36693.69
A12: 2079 | B12: Woodlands Primary School | C12: 403369.8672 | D12: 1 | E12: 0.12 | F12: 2899890.81 | G12: 0 | H12: 101995.75 | I12: 189845 | J12: 111828 | K12: 57856 | L12: 3361415.56 | M12: =Form!$E$5 -> 0 | N12: -443657.85 | O12: -443657.85
A13: 2088 | B13: Crockenhill Primary School | C13: 142011.6372 | D13: 1 | E13: 0.12 | F13: 1012288.05 | G13: 0 | H13: 22187.26 | I13: 87995 | J13: 37133 | K13: 23827 | L13: 1183430.31 | M13: =Form!$E$5 -> 0 | N13: -65319.07 | O13: -65319.07
A14: 2089 | B14: Anthony Roper Primary School, The | C14: 181667.3268 | D14: 1 | E14: 0.12 | F14: 1378228 | G14: 0 | H14: 4608.39 | I14: 53770 | J14: 70632 | K14: 6656 | L14: 1513894.39 | M14: =Form!$E$5 -> 0 | N14: -121098.43 | O14: -121098.43
A15: 2094 | B15: Cobham Primary School | C15: 134378.8404 | D15: 1 | E15: 0.12 | F15: 988117.74 | G15: 0 | H15: 35661.93 | I15: 35550 | J15: 43278 | K15: 17216 | L15: 1119823.67 | M15: =Form!$E$5 -> 0 | N15: -81819.82 | O15: -81819.82
A16: 2095 | B16: Cecil Road Primary and Nursery School | C16: 279388.5912 | D16: 1 | E16: 0.12 | F16: 1984426.01 | G16: 0 | H16: 147647.25 | I16: 91305 | J16: 70812 | K16: 34048 | L16: 2328238.26 | M16: =Form!$E$5 -> 0 | N16: -16191.16 | O16: -16191.16
A17: 2109 | B17: Higham Primary School | C17: 137536.992 | D17: 1 | E17: 0.12 | F17: 957694.56 | G17: 0 | H17: 58021.04 | I17: 51175 | J17: 56921 | K17: 22330 | L17: 1146141.6 | M17: =Form!$E$5 -> 0 | N17: -49918.71 | O17: -49918.71
A18: 2116 | B18: Lawn Primary School | C18: 181207.1964 | D18: 1 | E18: 0.12 | F18: 1253690.35 | G18: 0 | H18: 41657.62 | I18: 158340 | J18: 35663 | K18: 20709 | L18: 1510059.97 | M18: =Form!$E$5 -> 0 | N18: -19633.18 | O18: -19633.18
A19: 2120 | B19: Bean Primary School | C19: 131334.3 | D19: 1 | E19: 0.12 | F19: 932391.11 | G19: 0 | H19: 46103.89 | I19: 56745 | J19: 42496 | K19: 16716.5 | L19: 1094452.5 | M19: =Form!$E$5 -> 0 | N19: -68754.38 | O19: -68754.38
A20: 2128 | B20: Capel Primary School | C20: 133134.2232 | D20: 1 | E20: 0.12 | F20: 945828.39 | G20: 0 | H20: 42120.22 | I20: 49470 | J20: 48206 | K20: 23827.25 | L20: 1109451.86 | M20: =Form!$E$5 -> 0 | N20: -132892.48 | O20: -132892.48
A21: 2130 | B21: Dunton Green Primary School | C21: 137784.0936 | D21: 1 | E21: 0.12 | F21: 945276.02 | G21: 0 | H21: 44531.76 | I21: 87635 | J21: 46182 | K21: 24576 | L21: 1148200.78 | M21: =Form!$E$5 -> 0 | N21: -89716.79 | O21: -89716.79
A22: 2132 | B22: Hadlow Primary School | C22: 146949.1056 | D22: 1 | E22: 0.12 | F22: 970463.77 | G22: 0 | H22: 90842.11 | I22: 102545 | J22: 36399 | K22: 24326 | L22: 1224575.88 | M22: =Form!$E$5 -> 0 | N22: -123596.99 | O22: -123596.99
A23: 2136 | B23: Kemsing Primary School | C23: 121888.062 | D23: 1 | E23: 0.12 | F23: 870132.4 | G23: 0 | H23: 40617.45 | I23: 33465 | J23: 49563 | K23: 21956 | L23: 1015733.85 | M23: =Form!$E$5 -> 0 | N23: -26305.99 | O23: -26305.99
A24: 2137 | B24: Leigh Primary School | C24: 120144.2808 | D24: 1 | E24: 0.12 | F24: 814549.53 | G24: 0 | H24: 76142.81 | I24: 52695 | J24: 46962 | K24: 10853 | L24: 1001202.34 | M24: =Form!$E$5 -> 0 | N24: -9132.64 | O24: -9132.64 | Q24: Within Tolerance
A25: 2138 | B25: Otford Primary School | C25: 209434.7544 | D25: 1 | E25: 0.12 | F25: 1544179.52 | G25: 0 | H25: 36241.1 | I25: 65095 | J25: 70334 | K25: 29440 | L25: 1745289.62 | M25: =Form!$E$5 -> 0 | N25: -197670 | O25: -197670
A26: 2139 | B26: Pembury School | C26: 245455.4928 | D26: 1 | E26: 0.12 | F26: 1810428 | G26: 0 | H26: 41465.8 | I26: 70585.64 | J26: 80487 | K26: 42496 | L26: 2045462.44 | M26: =Form!$E$5 -> 0 | N26: -186215.6 | O26: -186215.6
A27: 2142 | B27: Sandhurst Primary School | C27: 114602.2548 | D27: 1 | E27: 0.12 | F27: 769615.77 | G27: 0 | H27: 67890.51 | I27: 52380 | J27: 39644 | K27: 25488.51 | L27: 955018.79 | M27: =Form!$E$5 -> 0 | N27: -79751.15 | O27: -79751.15
A28: 2147 | B28: Weald Community Primary School | C28: 88404.624 | D28: 1 | E28: 0.12 | F28: 643651.5 | G28: 0 | H28: 19794.7 | I28: 20370 | J28: 37669 | K28: 15220 | L28: 736705.2 | M28: =Form!$E$5 -> 0 | N28: -75719.92 | O28: -75719.92
A29: 2148 | B29: Shoreham Village School | C29: 78472.728 | D29: 1 | E29: 0.12 | F29: 557110.26 | G29: 0 | H29: 21302.88 | I29: 32010 | J29: 27305 | K29: 16211.26 | L29: 653939.4 | M29: =Form!$E$5 -> 0 | N29: -34982.97 | O29: -34982.97
A30: 2155 | B30: Slade Primary School | C30: 305090.5356 | D30: 1 | E30: 0.12 | F30: 1995193.78 | G30: 0 | H30: 345748.35 | I30: 90480 | J30: 81047 | K30: 29952 | L30: 2542421.13 | M30: =Form!$E$5 -> 0 | N30: -70561.13 | O30: -70561.13
A31: 2156 | B31: Sussex Road Community Primary School | C31: 263037.5652 | D31: 1 | E31: 0.12 | F31: 1909319.9 | G31: 0 | H31: 55036.91 | I31: 91575 | J31: 78116 | K31: 57931.9 | L31: 2191979.71 | M31: =Form!$E$5 -> 0 | N31: -263209.06 | O31: -263209.06
A32: 2161 | B32: Boughton Monchelsea Primary School | C32: 162403.3332 | D32: 1 | E32: 0.12 | F32: 1028178.56 | G32: 0 | H32: 192247.55 | I32: 60350 | J32: 50005 | K32: 22580 | L32: 1353361.11 | M32: =Form!$E$5 -> 0 | N32: -114206.67 | O32: -114206.67
A33: 2163 | B33: East Farleigh Primary School | C33: 153806.4024 | D33: 1 | E33: 0.12 | F33: 1017474.46 | G33: 0 | H33: 151683.56 | I33: 46875 | J33: 48970 | K33: 16717 | L33: 1281720.02 | M33: =Form!$E$5 -> 0 | N33: -76197.11 | O33: -76197.11
A34: 2164 | B34: East Peckham Primary School | C34: 119525.268 | D34: 1 | E34: 0.12 | F34: 826874.62 | G34: 0 | H34: 56959.28 | I34: 39285 | J34: 52216 | K34: 20709 | L34: 996043.9 | M34: =Form!$E$5 -> 0 | N34: -55661.2 | O34: -55661.2
A35: 2165 | B35: Headcorn Primary School | C35: 257115.9636 | D35: 1 | E35: 0.12 | F35: 1791399.67 | G35: 0 | H35: 95847.36 | I35: 116195 | J35: 85431 | K35: 53760 | L35: 2142633.03 | M35: =Form!$E$5 -> 0 | N35: -152580.44 | O35: -152580.44
A36: 2166 | B36: Hollingbourne Primary School | C36: 88993.128 | D36: 1 | E36: 0.12 | F36: 591301.8 | G36: 0 | H36: 67240.6 | I36: 38525 | J36: 30819 | K36: 13723 | L36: 741609.4 | M36: =Form!$E$5 -> 0 | N36: -39628.98 | O36: -39628.98
A37: 2167 | B37: Ightham Primary School | C37: 135074.3988 | D37: 1 | E37: 0.12 | F37: 958519.28 | G37: 0 | H37: 67069.71 | I37: 20305 | J37: 58269 | K37: 21457 | L37: 1125619.99 | M37: =Form!$E$5 -> 0 | N37: -38743.4 | O37: -38743.4
A38: 2168 | B38: Lenham Primary School | C38: 144849.4344 | D38: 1 | E38: 0.12 | F38: 1000252.44 | G38: 0 | H38: 58142.18 | I38: 69775 | J38: 60072 | K38: 18837 | L38: 1207078.62 | M38: =Form!$E$5 -> 0 | N38: -134607.22 | O38: -134607.22
A39: 2169 | B39: Platts Heath Primary School | C39: 65127.8424 | D39: 1 | E39: 0.12 | F39: 438084.39 | G39: 0 | H39: 54218.63 | I39: 28650 | J39: 19434 | K39: 2345 | L39: 542732.02 | M39: =Form!$E$5 -> 0 | N39: -111190 | O39: -111190
A40: 2171 | B40: Brunswick House Primary School | C40: 306802.2756 | D40: 1 | E40: 0.12 | F40: 1974526.4 | G40: 0 | H40: 278207.23 | I40: 166315 | J40: 63397 | K40: 74240 | L40: 2556685.63 | M40: =Form!$E$5 -> 0 | N40: -284217.22 | O40: -284217.22
A41: 2175 | B41: North Borough Junior School | C41: 234860.1012 | D41: 1 | E41: 0.12 | F41: 1632948.72 | G41: 0 | H41: 125733.18 | I41: 153195 | J41: 19430 | K41: 25860.61 | L41: 1957167.51 | M41: =Form!$E$5 -> 0 | N41: -72923.66 | O41: -72923.66
A42: 2176 | B42: Park Way Primary School | C42: 213115.2576 | D42: 1 | E42: 0.12 | F42: 1519661.14 | G42: 0 | H42: 41143.09 | I42: 122839 | J42: 54003 | K42: 38314.25 | L42: 1775960.48 | M42: =Form!$E$5 -> 0 | N42: -281454.64 | O42: -281454.64
A43: 2185 | B43: Mereworth Community Primary School | C43: 140873.9436 | D43: 1 | E43: 0.12 | F43: 952901.57 | G43: 0 | H43: 92156.96 | I43: 51620 | J43: 50903 | K43: 26368 | L43: 1173949.53 | M43: =Form!$E$5 -> 0 | N43: -106974.12 | O43: -106974.12
A44: 2187 | B44: Offham Primary School | C44: 132953.6832 | D44: 1 | E44: 0.12 | F44: 954613.7 | G44: 0 | H44: 52277.66 | I44: 19610 | J44: 57619 | K44: 23827 | L44: 1107947.36 | M44: =Form!$E$5 -> 0 | N44: -12937.56 | O44: -12937.56
A45: 2188 | B45: Plaxtol Primary School | C45: 76476.8196 | D45: 1 | E45: 0.12 | F45: 559925.81 | G45: 0 | H45: 11471.52 | I45: 17460 | J45: 33230 | K45: 15219.5 | L45: 637306.83 | M45: =Form!$E$5 -> 0 | N45: -81044.26 | O45: -81044.26
A46: 2189 | B46: Ryarsh Primary School | C46: 141722.8032 | D46: 1 | E46: 0.12 | F46: 983781.11 | G46: 0 | H46: 105285.25 | I46: 29415 | J46: 40985 | K46: 21557 | L46: 1181023.36 | M46: =Form!$E$5 -> 0 | N46: -87847.57 | O46: -87847.57
A47: 2190 | B47: Shipbourne School | C47: 62904.408 | D47: 1 | E47: 0.12 | F47: 408269.06 | G47: 0 | H47: 65567.34 | I47: 16005 | J47: 27625 | K47: 6737 | L47: 524203.4 | M47: =Form!$E$5 -> 0 | N47: -53427.45 | O47: -53427.45
A48: 2192 | B48: Staplehurst School | C48: 269148.1092 | D48: 1 | E48: 0.12 | F48: 1832187 | G48: 0 | H48: 158527.91 | I48: 120385 | J48: 94169 | K48: 37632 | L48: 2242900.91 | M48: =Form!$E$5 -> 0 | N48: -86232.54 | O48: -86232.54
A49: 2193 | B49: Sutton Valence Primary School | C49: 139790.5152 | D49: 1 | E49: 0.12 | F49: 979636.29 | G49: 0 | H49: 46851.67 | I49: 67625 | J49: 50973 | K49: 19835 | L49: 1164920.96 | M49: =Form!$E$5 -> 0 | N49: -136274.65 | O49: -136274.65
A50: 2226 | B50: Eastling Primary School | C50: 86278.8864 | D50: 1 | E50: 0.12 | F50: 603012.86 | G50: 0 | H50: 46727.36 | I50: 24355 | J50: 30674 | K50: 14221.5 | L50: 718990.72 | M50: =Form!$E$5 -> 0 | N50: -56037.77 | O50: -56037.77
A51: 2227 | B51: Ethelbert Road Primary School | C51: 133416.9048 | D51: 1 | E51: 0.12 | F51: 951617 | G51: 0 | H51: 57278.54 | I51: 35550 | J51: 55885 | K51: 11477 | L51: 1111807.54 | M51: =Form!$E$5 -> 0 | N51: -114654.84 | O51: -114654.84
A52: 2228 | B52: Davington Primary School | C52: 260152.6104 | D52: 1 | E52: 0.12 | F52: 1871793.83 | G52: 0 | H52: 48028.59 | I52: 125780 | J52: 82912 | K52: 39424 | L52: 2167938.42 | M52: =Form!$E$5 -> 0 | N52: -78095.6 | O52: -78095.6
A53: 2231 | B53: Lower Halstow School | C53: 135756.6552 | D53: 1 | E53: 0.12 | F53: 924575.39 | G53: 0 | H53: 108294.07 | I53: 29055 | J53: 48548 | K53: 20833 | L53: =SUM(F53:K53) -> 1131305.46 | M53: =Form!$E$5 -> 0 | N53: -134707.87 | O53: -134707.87
A54: 2239 | B54: Rodmersham School | C54: 91881.354 | D54: 1 | E54: 0.12 | F54: 605788.19 | G54: 0 | H54: 108606.76 | I54: 6895 | J54: 38525 | K54: 5863 | L54: 765677.95 | M54: =Form!$E$5 -> 0 | N54: -28067.65 | O54: =N54-M54 -> -28067.65 | P54: =O54/M54 ->  | Q54: =IF(AND(O54<$Q$2,O54>-$Q$2),"Within Tolerance",IF(AND(P54<$R$2,P54>-$R$2),"Within Tolerance",O54)) -> 
A55: 2245 | B55: Rose Street School | C55: 342786.3048 | D55: 1 | E55: 0.12 | F55: 2277536.44 | G55: 0 | H55: 109673.64 | I55: 355445.46 | J55: 34025 | K55: 79872 | L55: 2856552.54 | M55: =Form!$E$5 -> 0 | N55: -336220.6 | O55: -336220.6
A56: 2254 | B56: Canterbury Road Primary School | C56: 155820.7488 | D56: 1 | E56: 0.12 | F56: 1079443.65 | G56: 0 | H56: 54674.59 | I56: 101460 | J56: 32976 | K56: 29952 | L56: 1298506.24 | M56: =Form!$E$5 -> 0 | N56: -59968.28 | O56: -59968.28
A57: 2258 | B57: Blean Primary School | C57: 268154.9784 | D57: 1 | E57: 0.12 | F57: 1943960 | G57: 0 | H57: 97416.82 | I57: 56700 | J57: 98916 | K57: 37632 | L57: 2234624.82 | M57: =Form!$E$5 -> 0 | N57: -164712 | O57: -164712
A58: 2263 | B58: Herne Bay Infant School | C58: 218033.0268 | D58: 1 | E58: 0.12 | F58: 1476859.21 | G58: 0 | H58: 109595.68 | I58: 138005 | J58: 76514 | K58: 15968 | L58: 1816941.89 | M58: =Form!$E$5 -> 0 | N58: -150687.1 | O58: -150687.1
A59: 2265 | B59: Hoath Primary School | C59: 80442.8676 | D59: 1 | E59: 0.12 | F59: 554988.96 | G59: 0 | H59: 38333.27 | I59: 29795 | J59: 32894 | K59: 14346 | L59: 670357.23 | M59: =Form!$E$5 -> 0 | N59: -34291.58 | O59: -34291.58
A60: 2268 | B60: Westmeads Community Infant School | C60: 123386.0676 | D60: 1 | E60: 0.12 | F60: 804082.78 | G60: 0 | H60: 89363.45 | I60: 42615 | J60: 72445 | K60: 19711 | L60: 1028217.23 | M60: =Form!$E$5 -> 0 | N60: -98417.06 | O60: -98417.06
A61: 2269 | B61: Whitstable Junior School | C61: 173702.1492 | D61: 1 | E61: 0.12 | F61: 1144053.69 | G61: 0 | H61: 154038.22 | I61: 112181 | J61: 18408 | K61: 18837 | L61: 1447517.91 | M61: =Form!$E$5 -> 0 | N61: -145114.59 | O61: -145114.59
A62: 2270 | B62: Aldington Primary School | C62: 121935.8544 | D62: 1 | E62: =IF(D62=1,0.12,IF(D62=4,0.085,0.075)) -> 0.12 | F62: 882816.48 | G62: 0 | H62: 17786.64 | I62: 42328 | J62: 43249 | K62: 29952 | L62: 1016132.12 | M62: =Form!$E$5 -> 0 | N62: -38316.42 | O62: -38316.42
A63: 2275 | B63: Victoria Road Primary School | C63: =IF(D63=1,L63*0.12,IF(D63=3,L63*0.085,L63*0.075)) -> 151449.1464 | D63: 1 | E63: 0.12 | F63: 1033726.12 | G63: 0 | H63: 76789.1 | I63: 85754 | J63: 50712 | K63: 15095 | L63: 1262076.22 | M63: =Form!$E$5 -> 0 | N63: -151098.49 | O63: -151098.49
A64: 2276 | B64: Willesborough Infant School | C64: 221248.6536 | D64: 1 | E64: 0.12 | F64: 1563512.73 | G64: 0 | H64: 43264.05 | I64: 76550 | J64: 137333 | K64: 23079 | L64: 1843738.78 | M64: =Form!$E$5 -> 0 | N64: 19768.93 | O64: 19768.93
A65: 2278 | B65: Bethersden Primary School | C65: 103571.196 | D65: 1 | E65: 0.12 | F65: 705590.11 | G65: 0 | H65: 55823.19 | I65: 50270 | J65: 40432 | K65: 10978 | L65: 863093.3 | M65: =Form!$E$5 -> 0 | N65: -51929.07 | O65: -51929.07
A66: 2279 | B66: Brook Community Primary School | C66: 68627.0052 | D66: 1 | E66: 0.12 | F66: 498997.36 | G66: 0 | H66: 20927.35 | I66: 17460 | J66: 25899 | K66: 8608 | L66: 571891.71 | M66: =Form!$E$5 -> 0 | N66: -19929.45 | O66: -19929.45
A67: 2280 | B67: Challock Primary School | C67: 129131.76 | D67: 1 | E67: 0.12 | F67: 939639.32 | G67: 0 | H67: 36590.68 | I67: 29010 | J67: 51147 | K67: 19711 | L67: 1076098 | M67: =Form!$E$5 -> 0 | N67: -58982.57 | O67: -58982.57
A68: 2282 | B68: Great Chart Primary School | C68: 281316.9612 | D68: 1 | E68: 0.12 | F68: 1926426.79 | G68: 0 | H68: 171029.72 | I68: 122089.5 | J68: 86362 | K68: 38400 | L68: 2344308.01 | M68: =Form!$E$5 -> 0 | N68: -110848.79 | O68: -110848.79
A69: 2285 | B69: Mersham Primary School | C69: 115454.1468 | D69: 1 | E69: 0.12 | F69: 845188.53 | G69: 0 | H69: 32113.36 | I69: 42195 | J69: 34762 | K69: 7859 | L69: 962117.89 | M69: =Form!$E$5 -> 0 | N69: -112262.49 | O69: -112262.49
A70: 2289 | B70: Smeeth Community Primary School | C70: 83036.3976 | D70: 1 | E70: 0.12 | F70: 605710.84 | G70: 0 | H70: 15042.14 | I70: 22900 | J70: 33472 | K70: 14845 | L70: 691969.98 | M70: =Form!$E$5 -> 0 | N70: -23162.84 | O70: -23162.84
A71: 2298 | B71: Hawkinge Primary School | C71: 258172.176 | D71: 1 | E71: 0.12 | F71: 1813550 | G71: 0 | H71: 108450.92 | I71: 135168.88 | J71: 86022 | K71: 8243 | L71: 2151434.8 | M71: =Form!$E$5 -> 0 | N71: -223080 | O71: -223080
A72: 2300 | B72: Sellindge Primary School | C72: 107484.0084 | D72: 1 | E72: 0.12 | F72: 743774.3 | G72: 0 | H72: 53747.77 | I72: 30215 | J72: 47629 | K72: 20334 | L72: 895700.07 | M72: =Form!$E$5 -> 0 | N72: -44115.29 | O72: -44115.29
A73: 2312 | B73: River Primary School | C73: 278200.3956 | D73: 1 | E73: 0.12 | F73: 1939112.09 | G73: 0 | H73: 157690.54 | I73: 111495 | J73: 69079 | K73: 40960 | L73: 2318336.63 | M73: =Form!$E$5 -> 0 | N73: -232159.8 | O73: -232159.8
A74: 2318 | B74: Langdon Primary School | C74: 74006.2956 | D74: 1 | E74: 0.12 | F74: 529847.27 | G74: 0 | H74: 22468.86 | I74: 27555 | J74: 31858 | K74: 4990 | L74: 616719.13 | M74: =Form!$E$5 -> 0 | N74: -45238.43 | O74: -45238.43
A75: 2320 | B75: Eythorne Elvington Community Primary School | C75: 99724.9092 | D75: 1 | E75: 0.12 | F75: 638963.99 | G75: 0 | H75: 73071.92 | I75: 77440 | J75: 24225 | K75: 17340 | L75: 831040.91 | M75: =Form!$E$5 -> 0 | N75: -93272.04 | O75: -93272.04
A76: 2321 | B76: Lydden Primary School | C76: 66136.6056 | D76: 1 | E76: 0.12 | F76: 469127.98 | G76: 0 | H76: 32144.4 | I76: 12715 | J76: 27820 | K76: 9331 | L76: 551138.38 | M76: =Form!$E$5 -> 0 | N76: -61917.54 | O76: -61917.54
A77: 2322 | B77: Preston Primary School | C77: 84020.2644 | D77: 1 | E77: 0.12 | F77: 606654.79 | G77: 0 | H77: 17636.08 | I77: 25050 | J77: 32864 | K77: 17964 | L77: 700168.87 | M77: =Form!$E$5 -> 0 | N77: -45851.91 | O77: -45851.91
A78: 2326 | B78: Wingham Primary School | C78: 136317.48 | D78: 1 | E78: 0.12 | F78: 922617.03 | G78: 0 | H78: 84407.97 | I78: 53115 | J78: 44607 | K78: 31232 | L78: 1135979 | M78: =Form!$E$5 -> 0 | N78: -132845.9 | O78: -132845.9
A79: 2328 | B79: St Mildred's Primary Infant School | C79: 189384.2976 | D79: 1 | E79: 0.12 | F79: 1289079.54 | G79: 0 | H79: 70427.94 | I79: 88375 | J79: 105370 | K79: 24950 | L79: 1578202.48 | M79: =Form!$E$5 -> 0 | N79: -152671.97 | O79: -152671.97
A80: 2329 | B80: Callis Grange Nursery and Infant School | C80: 188903.9556 | D80: 1 | E80: 0.12 | F80: 1303393.2 | G80: 0 | H80: 32968.43 | I80: 106057 | J80: 82117 | K80: 49664 | L80: 1574199.63 | M80: =Form!$E$5 -> 0 | N80: -255959.74 | O80: -255959.74
A81: 2337 | B81: St Crispin's Community Primary Infant School | C81: 182541.0252 | D81: 1 | E81: 0.12 | F81: 1222367.8 | G81: 0 | H81: 94417.95 | I81: 102430 | J81: 78862 | K81: 23097.46 | L81: 1521175.21 | M81: =Form!$E$5 -> 0 | N81: -33718.53 | O81: -33718.53
A82: 2340 | B82: Ellington Infant School | C82: 120447.1896 | D82: 1 | E82: 0.12 | F82: 739969.48 | G82: 0 | H82: 106006.1 | I82: 82880 | J82: 47223 | K82: 27648 | L82: 1003726.58 | M82: =Form!$E$5 -> 0 | N82: -58811.41 | O82: -58811.41
A83: 2345 | B83: Priory Infant School | C83: 134988.7428 | D83: 1 | E83: 0.12 | F83: 877874.22 | G83: 0 | H83: 76567.97 | I83: 77220 | J83: 62268 | K83: 30976 | L83: 1124906.19 | M83: =Form!$E$5 -> 0 | N83: -104002.46 | O83: -104002.46
A84: 2431 | B84: Shears Green Junior School | C84: 301186.008 | D84: 1 | E84: 0.12 | F84: 2199579.08 | G84: 0 | H84: 77481.32 | I84: 190270 | J84: 20793 | K84: 21760 | L84: 2509883.4 | M84: =Form!$E$5 -> 0 | N84: 0 | O84: 0 | Q84: Within Tolerance
A85: 2434 | B85: West Minster Primary School | C85: 421393.3476 | D85: 1 | E85: 0.12 | F85: 2780339.61 | G85: 0 | H85: 217030.62 | I85: 401999 | J85: 31858 | K85: 80384 | L85: 3511611.23 | M85: =Form!$E$5 -> 0 | N85: -410828.79 | O85: -410828.79
A86: 2454 | B86: Aycliffe Community Primary School | C86: 103879.926 | D86: 1 | E86: 0.12 | F86: 625511.78 | G86: 0 | H86: 110423.27 | I86: 82890 | J86: 22390 | K86: 24451 | L86: 865666.05 | M86: =Form!$E$5 -> 0 | N86: -86333.13 | O86: -86333.13
A87: 2459 | B87: Riverhead Infant School | C87: 174868.8444 | D87: 1 | E87: 0.12 | F87: 1202254.08 | G87: 0 | H87: 56788.29 | I87: 17415 | J87: 136239 | K87: 44544 | L87: 1457240.37 | M87: =Form!$E$5 -> 0 | N87: -2860.84 | O87: -2860.84 | Q87: Within Tolerance
A88: 2465 | B88: Claremont Primary School | C88: 272052.2952 | D88: 1 | E88: 0.12 | F88: 1978215 | G88: 0 | H88: 122118.46 | I88: 29035 | J88: 99078 | K88: 38656 | L88: 2267102.46 | M88: =Form!$E$5 -> 0 | N88: -263456.9 | O88: -263456.9
A89: 2471 | B89: Whitfield Aspen School | C89: 780411.8616 | D89: 1 | E89: 0.12 | F89: 4014560.25 | G89: 0 | H89: 1918918.93 | I89: 302275 | J89: 73630 | K89: 194048 | L89: 6503432.18 | M89: =Form!$E$5 -> 0 | N89: -229751.45 | O89: -229751.45
A90: 2474 | B90: St Paul's Infant School | C90: 196004.2788 | D90: 1 | E90: 0.12 | F90: 1294646.63 | G90: 0 | H90: 127258.36 | I90: 124025 | J90: 75962 | K90: 11477 | L90: 1633368.99 | M90: =Form!$E$5 -> 0 | N90: -258685.85 | O90: -258685.85
A91: 2482 | B91: Langton Green Primary School | C91: 259093.8012 | D91: 1 | E91: 0.12 | F91: 1857360 | G91: 0 | H91: 131967.01 | I91: 41750 | J91: 88870 | K91: 39168 | L91: 2159115.01 | M91: =Form!$E$5 -> 0 | N91: -220380.13 | O91: -220380.13
A92: 2490 | B92: Bishops Down Primary School | C92: 173461.9344 | D92: 1 | E92: 0.12 | F92: 1166137.17 | G92: 0 | H92: 150485.95 | I92: 37450 | J92: 56627 | K92: 34816 | L92: 1445516.12 | M92: =Form!$E$5 -> 0 | N92: 56276.11 | O92: 56276.11
A93: 2509 | B93: Singlewell Primary School | C93: 246567.8652 | D93: 1 | E93: 0.12 | F93: 1782445 | G93: 0 | H93: 32602.21 | I93: 114945 | J93: 73028 | K93: 51712 | L93: 2054732.21 | M93: =Form!$E$5 -> 0 | N93: -4831.36 | O93: -4831.36 | Q93: Within Tolerance
A94: 2510 | B94: Cheriton Primary School | C94: 259192.7856 | D94: 1 | E94: 0.12 | F94: 1758991.1 | G94: 0 | H94: 135253.78 | I94: 179855 | J94: 76931 | K94: 8909 | L94: 2159939.88 | M94: =Form!$E$5 -> 0 | N94: -77577.58 | O94: -77577.58
A95: 2514 | B95: Brookfield Infant School | C95: 127786.2 | D95: 1 | E95: 0.12 | F95: 875749.71 | G95: 0 | H95: 32973.29 | I95: 51240 | J95: 84712 | K95: 20210 | L95: 1064885 | M95: =Form!$E$5 -> 0 | N95: -21640 | O95: -21640
A96: 2519 | B96: Vigo Village School | C96: 98186.5812 | D96: 1 | E96: 0.12 | F96: 710461.32 | G96: 0 | H96: 19965.19 | I96: 35085 | J96: 30629 | K96: 22081 | L96: 818221.51 | M96: =Form!$E$5 -> 0 | N96: -85573.47 | O96: -85573.47
A97: 2520 | B97: Madginford Park Infant School | C97: 392742.522 | D97: 1 | E97: 0.12 | F97: 2869589 | G97: 0 | H97: 147915.35 | I97: 96065 | J97: 98357 | K97: 60928 | L97: 3272854.35 | M97: =Form!$E$5 -> 0 | N97: -109841.41 | O97: -109841.41
A98: 2524 | B98: Palmarsh Primary School | C98: 143069.5764 | D98: 1 | E98: 0.12 | F98: 976814.33 | G98: 0 | H98: 60235.14 | I98: 88410 | J98: 50569 | K98: 16218 | L98: 1192246.47 | M98: =Form!$E$5 -> 0 | N98: -82755.92 | O98: -82755.92
A99: 2525 | B99: Painters Ash Primary School | C99: 257737.2096 | D99: 1 | E99: 0.12 | F99: 1839741.46 | G99: 0 | H99: 46216.62 | I99: 143390 | J99: 76734 | K99: 41728 | L99: 2147810.08 | M99: =Form!$E$5 -> 0 | N99: -16017.31 | O99: -16017.31
A100: 2530 | B100: Tunbury Primary School | C100: 346983.4428 | D100: 1 | E100: 0.12 | F100: 2638787 | G100: 0 | H100: 43924.69 | I100: 65885 | J100: 96596 | K100: 46336 | L100: 2891528.69 | M100: =Form!$E$5 -> 0 | N100: -310370.32 | O100: -310370.32
A101: 2532 | B101: St Margaret's-at-Cliffe Primary School | C101: 130451.6808 | D101: 1 | E101: 0.12 | F101: 896460.31 | G101: 0 | H101: 86747.03 | I101: 29795 | J101: 55382 | K101: 18713 | L101: 1087097.34 | M101: =Form!$E$5 -> 0 | N101: -45881.48 | O101: -45881.48
A102: 2539 | B102: Stocks Green Primary School | C102: 136450.008 | D102: 1 | E102: 0.12 | F102: 980905.81 | G102: 0 | H102: 58761.59 | I102: 19565 | J102: 54647 | K102: 23204 | L102: 1137083.4 | M102: =Form!$E$5 -> 0 | N102: -76895.78 | O102: -76895.78
A103: 2545 | B103: Sandgate Primary School | C103: 262188.0744 | D103: 1 | E103: 0.12 | F103: 1895571 | G103: 0 | H103: 66144.62 | I103: 82910 | J103: 93683 | K103: 46592 | L103: 2184900.62 | M103: =Form!$E$5 -> 0 | N103: -227117.34 | O103: -227117.34
A104: 2552 | B104: Sandling Primary School | C104: 254865.138 | D104: 1 | E104: 0.12 | F104: 1897992 | G104: 0 | H104: 70315.15 | I104: 35950 | J104: 88387 | K104: 31232 | L104: 2123876.15 | M104: =Form!$E$5 -> 0 | N104: -306278 | O104: -306278
A105: 2559 | B105: Capel-le-Ferne Primary School | C105: 126846.5172 | D105: 1 | E105: 0.12 | F105: 871559.79 | G105: 0 | H105: 63632.52 | I105: 70495 | J105: 32031 | K105: 19336 | L105: 1057054.31 | M105: =Form!$E$5 -> 0 | N105: -49594.33 | O105: -49594.33
A106: 2562 | B106: Lunsford Primary School | C106: 133721.5308 | D106: 1 | E106: 0.12 | F106: 987205.26 | G106: 0 | H106: 2193.75 | I106: 56745 | J106: 49273 | K106: 18929.08 | L106: =SUM(F106:K106) -> 1114346.09 | M106: =Form!$E$5 -> 0 | N106: -21702.1 | O106: -21702.1
A107: 2574 | B107: Downs View Infant School | C107: 172172.1384 | D107: 1 | E107: 0.12 | F107: 1171607.74 | G107: 0 | H107: 61363.08 | I107: 56471 | J107: 117678 | K107: 27648 | L107: 1434767.82 | M107: =Form!$E$5 -> 0 | N107: 13269.48 | O107: 13269.48
A108: 2578 | B108: Kingswood Primary School | C108: 96470.94 | D108: 1 | E108: 0.12 | F108: 665008.45 | G108: 0 | H108: 54744.05 | I108: 33820 | J108: 34259 | K108: 16093 | L108: 803924.5 | M108: =Form!$E$5 -> 0 | N108: -96018.71 | O108: -96018.71
A109: 2586 | B109: Senacre Wood Primary School | C109: 154680.6168 | D109: 1 | E109: 0.12 | F109: 1062988.87 | G109: 0 | H109: 55003.27 | I109: 101760 | J109: 47921 | K109: 21332 | L109: 1289005.14 | M109: =Form!$E$5 -> 0 | N109: -84973.89 | O109: -84973.89
A110: 2603 | B110: Bromstone Primary School, Broadstairs | C110: 350474.2044 | D110: 1 | E110: 0.12 | F110: 2223729.25 | G110: 0 | H110: 344597.12 | I110: 241800 | J110: 65436 | K110: 45056 | L110: 2920618.37 | M110: =Form!$E$5 -> 0 | N110: -132480.31 | O110: -132480.31
A111: 2607 | B111: Parkside Community Primary School | C111: 162026.244 | D111: 1 | E111: 0.12 | F111: 1064301.59 | G111: 0 | H111: 65274.11 | I111: 180420 | J111: 20762 | K111: 19461 | L111: 1350218.7 | M111: =Form!$E$5 -> 0 | N111: -136266.16 | O111: =N111-M111 -> -136266.16 | P111: =O111/M111 ->  | Q111: =IF(AND(O111<$Q$2,O111>-$Q$2),"Within Tolerance",IF(AND(P111<$R$2,P111>-$R$2),"Within Tolerance",O111)) -> 
A112: 2615 | B112: High Firs Primary School | C112: 134922.99 | D112: 1 | E112: 0.12 | F112: 985134.76 | G112: 0 | H112: 33190.49 | I112: 39030 | J112: 42053 | K112: 24950 | L112: 1124358.25 | M112: =Form!$E$5 -> 0 | N112: -43367.5 | O112: -43367.5
A113: 2627 | B113: Sandwich Junior School | C113: 147494.0304 | D113: 1 | E113: 0.12 | F113: 1000341.3 | G113: 0 | H113: 108582.62 | I113: 73925 | J113: 18108 | K113: 28160 | L113: 1229116.92 | M113: =Form!$E$5 -> 0 | N113: -131126.03 | O113: -131126.03
A114: 2632 | B114: Sevenoaks Primary School | C114: 373425.834 | D114: 1 | E114: 0.12 | F114: 2685046.52 | G114: 0 | H114: 124707.43 | I114: 133100 | J114: 93764 | K114: 75264 | L114: 3111881.95 | M114: =Form!$E$5 -> 0 | N114: -234134.87 | O114: -234134.87
A115: 2643 | B115: Swalecliffe Community Primary School | C115: 370967.994 | D115: 1 | E115: 0.12 | F115: 2622215 | G115: 0 | H115: 158346.95 | I115: 151635 | J115: 99299 | K115: 59904 | L115: 3091399.95 | M115: =Form!$E$5 -> 0 | N115: -98603.72 | O115: -98603.72
A116: 2648 | B116: Aylesham Primary School | C116: 280380.006 | D116: 1 | E116: 0.12 | F116: 1915891.85 | G116: 0 | H116: 90613.2 | I116: 234320 | J116: 68539 | K116: 27136 | L116: 2336500.05 | M116: =Form!$E$5 -> 0 | N116: -125830.4 | O116: -125830.4
A117: 2651 | B117: Broadwater Primary School | C117: 136048.7028 | D117: 1 | E117: 0.12 | F117: 878929.41 | G117: 0 | H117: 123913.78 | I117: 80325 | J117: 31734 | K117: 18837 | L117: 1133739.19 | M117: =Form!$E$5 -> 0 | N117: -138083.72 | O117: -138083.72
A118: 2653 | B118: West Borough Primary School | C118: 313109.64 | D118: 1 | E118: 0.12 | F118: 2231114.16 | G118: 0 | H118: 90022.84 | I118: 146570 | J118: 72932 | K118: 68608 | L118: 2609247 | M118: =Form!$E$5 -> 0 | N118: -242824.8 | O118: -242824.8
A119: 2662 | B119: Long Mead Community Primary School | C119: 116534.556 | D119: 1 | E119: 0.12 | F119: 751149.69 | G119: 0 | H119: 69399.61 | I119: 106555 | J119: 25554 | K119: 18463 | L119: 971121.3 | M119: =Form!$E$5 -> 0 | N119: -137406.37 | O119: -137406.37
A120: 2674 | B120: Kings Farm Primary School | C120: 363548.334 | D120: 1 | E120: =IF(D120=1,0.12,IF(D120=4,0.085,0.075)) -> 0.12 | F120: 2415179.94 | G120: 0 | H120: 200874.51 | I120: 308340 | J120: 61911 | K120: 43264 | L120: 3029569.45 | M120: =Form!$E$5 -> 0 | N120: -322374.23 | O120: -322374.23
A121: 2680 | B121: Kings Hill School | C121: =IF(D121=1,L121*0.12,IF(D121=3,L121*0.085,L121*0.075)) -> 271871.7036 | D121: 1 | E121: 0.12 | F121: 1901366 | G121: 0 | H121: 151075.53 | I121: 80600 | J121: 80332 | K121: 52224 | L121: 2265597.53 | M121: =Form!$E$5 -> 0 | N121: -52388.26 | O121: -52388.26
A122: 2682 | B122: New Ash Green Primary School | C122: 264264.1524 | D122: 1 | E122: 0.12 | F122: 1871930 | G122: 0 | H122: 127448.27 | I122: 96235 | J122: 72796 | K122: 33792 | L122: 2202201.27 | M122: =Form!$E$5 -> 0 | N122: -100776.61 | O122: -100776.61
A123: 2689 | B123: Craylands School, The | C123: 296212.1172 | D123: 1 | E123: 0.12 | F123: 2069733.89 | G123: 0 | H123: 99598.42 | I123: 158877 | J123: 78273 | K123: 61952 | L123: 2468434.31 | M123: =Form!$E$5 -> 0 | N123: -221170.74 | O123: -221170.74
A124: 3010 | B124: St Paul's CEP School | C124: 85068.6228 | D124: 1 | E124: 0.12 | F124: 595552.68 | G124: 0 | H124: 39791.51 | I124: 27325 | J124: 35507 | K124: 10729 | L124: 708905.19 | M124: =Form!$E$5 -> 0 | N124: -54720.88 | O124: -54720.88
A125: 3015 | B125: Fawkham CEP School | C125: 75382.6404 | D125: 1 | E125: 0.12 | F125: 556791.28 | G125: 0 | H125: 10169.39 | I125: 10880 | J125: 29265 | K125: 21083 | L125: 628188.67 | M125: =Form!$E$5 -> 0 | N125: -30674.49 | O125: -30674.49
A126: 3022 | B126: Benenden CEP School | C126: 136844.1 | D126: 1 | E126: 0.12 | F126: 960084.26 | G126: 0 | H126: 55124.24 | I126: 37450 | J126: 53278 | K126: 34431 | L126: 1140367.5 | M126: =Form!$E$5 -> 0 | N126: -157004.91 | O126: -157004.91
A127: 3023 | B127: Bidborough CEP School | C127: 128043.1668 | D127: 1 | E127: 0.12 | F127: 933397 | G127: 0 | H127: 45989.39 | I127: 23525 | J127: 49145 | K127: 14970 | L127: 1067026.39 | M127: =Form!$E$5 -> 0 | N127: -10600.76 | O127: -10600.76
A128: 3027 | B128: Cranbrook CEP School | C128: 160064.76 | D128: 1 | E128: 0.12 | F128: 1023401.35 | G128: 0 | H128: 130954.65 | I128: 109200 | J128: 44205 | K128: 26112 | L128: 1333873 | M128: =Form!$E$5 -> 0 | N128: -84034.78 | O128: -84034.78
A129: 3029 | B129: Goudhurst & Kilndown CEP School | C129: 142329.4944 | D129: 1 | E129: 0.12 | F129: 982659.29 | G129: 0 | H129: 73268.83 | I129: 51955 | J129: 50292 | K129: 27904 | L129: 1186079.12 | M129: =Form!$E$5 -> 0 | N129: -138247.55 | O129: -138247.55
A130: 3032 | B130: Hawkhurst CEP School | C130: 136670.9808 | D130: 1 | E130: 0.12 | F130: 902895.18 | G130: 0 | H130: 60181.66 | I130: 114055 | J130: 27233 | K130: 34560 | L130: 1138924.84 | M130: =Form!$E$5 -> 0 | N130: -80631.73 | O130: -80631.73
A131: 3033 | B131: Hildenborough CEP School | C131: 118252.1112 | D131: 1 | E131: 0.12 | F131: 853549 | G131: 0 | H131: 38770.26 | I131: 23700 | J131: 46835 | K131: 22580 | L131: 985434.26 | M131: =Form!$E$5 -> 0 | N131: -61362.91 | O131: -61362.91
A132: 3034 | B132: Lamberhurst St Mary's CEP School | C132: 129037.86 | D132: 1 | E132: 0.12 | F132: 924807 | G132: 0 | H132: 36439.68 | I132: 24285 | J132: 57560 | K132: 32223.82 | L132: 1075315.5 | M132: =Form!$E$5 -> 0 | N132: -66322.9 | O132: -66322.9
A133: 3037 | B133: St John's CEP School, Sevenoaks | C133: 129664.9836 | D133: 1 | E133: 0.12 | F133: 941067.59 | G133: 0 | H133: 36937.94 | I133: 31630 | J133: 48576 | K133: 22330 | L133: 1080541.53 | M133: =Form!$E$5 -> 0 | N133: -48628.31 | O133: -48628.31
A134: 3042 | B134: Speldhurst CEP School | C134: 128467.5876 | D134: 1 | E134: 0.12 | F134: 953066.11 | G134: 0 | H134: 33777.12 | I134: 25810 | J134: 54070 | K134: 3840 | L134: 1070563.23 | M134: =Form!$E$5 -> 0 | N134: -70302.05 | O134: -70302.05
A135: 3043 | B135: Sundridge and Brasted CEP School | C135: 71703.8232 | D135: 1 | E135: 0.12 | F135: 472755.08 | G135: 0 | H135: 62252.78 | I135: 32010 | J135: 23029 | K135: 7485 | L135: 597531.86 | M135: =Form!$E$5 -> 0 | N135: -39059.52 | O135: -39059.52
A136: 3050 | B136: St John's CEP School | C136: 394403.2236 | D136: 1 | E136: 0.12 | F136: 2844756 | G136: 0 | H136: 113334.53 | I136: 117450 | J136: 131281 | K136: 79872 | L136: 3286693.53 | M136: =Form!$E$5 -> 0 | N136: -82742.77 | O136: -82742.77
A137: 3052 | B137: St Mark's CEP School | C137: 228716.3364 | D137: 1 | E137: 0.12 | F137: 1603540.18 | G137: 0 | H137: 67584.29 | I137: 120340 | J137: 68937 | K137: 45568 | L137: 1905969.47 | M137: =Form!$E$5 -> 0 | N137: -190569.68 | O137: -190569.68
A138: 3053 | B138: St Peter's CEP School - Tun Wells | C138: 139535.0952 | D138: 1 | E138: 0.12 | F138: 965185.28 | G138: 0 | H138: 66565.18 | I138: 42485 | J138: 51880 | K138: 36677 | L138: 1162792.46 | M138: =Form!$E$5 -> 0 | N138: -56048.48 | O138: -56048.48
A139: 3054 | B139: Crockham Hill CEP School | C139: 98335.5924 | D139: 1 | E139: 0.12 | F139: 715128.53 | G139: 0 | H139: 34479.74 | I139: 6515 | J139: 45376 | K139: 17964 | L139: 819463.27 | M139: =Form!$E$5 -> 0 | N139: -86396.41 | O139: -86396.41
A140: 3055 | B140: Churchill CEP School | C140: 148899.3804 | D140: 1 | E140: 0.12 | F140: 1038731.42 | G140: 0 | H140: 51070.75 | I140: 83735 | J140: 38363 | K140: 28928 | L140: 1240828.17 | M140: =Form!$E$5 -> 0 | N140: -69736.38 | O140: -69736.38
A141: 3057 | B141: St Peter's C of E Primary School | C141: 130471.9116 | D141: 1 | E141: 0.12 | F141: 913377.45 | G141: 0 | H141: 56048.48 | I141: 54105 | J141: 47393 | K141: 16342 | L141: 1087265.93 | M141: =Form!$E$5 -> 0 | N141: -87921.73 | O141: -87921.73
A142: 3061 | B142: Bredhurst CEP School | C142: 83893.3452 | D142: 1 | E142: 0.12 | F142: 610561.44 | G142: 0 | H142: 1675.35 | I142: 22835 | J142: 46537 | K142: 17502.42 | L142: 699111.21 | M142: =Form!$E$5 -> 0 | N142: -4928.01 | O142: -4928.01 | Q142: Within Tolerance
A143: 3062 | B143: Burham CEP School | C143: 92822.2992 | D143: 1 | E143: 0.12 | F143: 683474.44 | G143: 0 | H143: 19763.72 | I143: 17460 | J143: 30740 | K143: 22081 | L143: 773519.16 | M143: =Form!$E$5 -> 0 | N143: -27931.14 | O143: -27931.14
A144: 3067 | B144: Harrietsham CEP School | C144: 201950.0208 | D144: 1 | E144: 0.12 | F144: 1428881.56 | G144: 0 | H144: 79424.28 | I144: 81055 | J144: 59764 | K144: 33792 | L144: 1682916.84 | M144: =Form!$E$5 -> 0 | N144: -11156.59 | O144: -11156.59
A145: 3069 | B145: Leeds & Broomfield CEP School | C145: 94690.7964 | D145: 1 | E145: 0.12 | F145: 582532.29 | G145: 0 | H145: 124851.68 | I145: 46206 | J145: 30011 | K145: 5489 | L145: 789089.97 | M145: =Form!$E$5 -> 0 | N145: -48235.33 | O145: -48235.33
A146: 3072 | B146: St Michael's CEJ School, Maidstone | C146: 114382.0812 | D146: 1 | E146: 0.12 | F146: 854177.38 | G146: 0 | H146: 19376.63 | I146: 51620 | J146: 17780 | K146: 10230 | L146: 953184.01 | M146: =Form!$E$5 -> 0 | N146: -117748.88 | O146: -117748.88
A147: 3073 | B147: St Michael's CEI School, Maidstone | C147: 90073.8084 | D147: 1 | E147: 0.12 | F147: 630523.38 | G147: 0 | H147: 23517.67 | I147: 31808.02 | J147: 54661 | K147: 10105 | L147: 750615.07 | M147: =Form!$E$5 -> 0 | N147: -70577.08 | O147: -70577.08
A148: 3081 | B148: Thurnham CEI School | C148: 173301.8052 | D148: 1 | E148: 0.12 | F148: 1220865 | G148: 0 | H148: 49022.71 | I148: 12670 | J148: 135256 | K148: 26368 | L148: 1444181.71 | M148: =Form!$E$5 -> 0 | N148: -77104.37 | O148: -77104.37
A149: 3082 | B149: Trottiscliffe CEP School | C149: 69886.0368 | D149: 1 | E149: 0.12 | F149: 505725.86 | G149: 0 | H149: 24962.78 | I149: 13410 | J149: 31923 | K149: 6362 | L149: 582383.64 | M149: =Form!$E$5 -> 0 | N149: -90596.99 | O149: -90596.99
A150: 3083 | B150: Ulcombe CEP School | C150: 80161.4256 | D150: 1 | E150: 0.12 | F150: 543710.41 | G150: 0 | H150: 45091.47 | I150: 52380 | J150: 19594 | K150: 7236 | L150: 668011.88 | M150: =Form!$E$5 -> 0 | N150: -81475.47 | O150: -81475.47
A151: 3084 | B151: Wateringbury CEP School | C151: 116258.1948 | D151: 1 | E151: 0.12 | F151: 823072.37 | G151: 0 | H151: 54153.92 | I151: 50165 | J151: 36537 | K151: 4890 | L151: =SUM(F151:K151) -> 968818.29 | M151: =Form!$E$5 -> 0 | N151: -71160.86 | O151: -71160.86
A152: 3088 | B152: Wouldham All Saints CoE Primary School | C152: 256383.6288 | D152: 1 | E152: 0.12 | F152: 1831085.72 | G152: 0 | H152: 57999.52 | I152: 95965 | J152: 80824 | K152: 70656 | L152: 2136530.24 | M152: =Form!$E$5 -> 0 | N152: -160073.68 | O152: -160073.68
A153: 3089 | B153: St George's CEP School | C153: 132363.1068 | D153: 1 | E153: 0.12 | F153: 939752.97 | G153: 0 | H153: 40606.92 | I153: 54910 | J153: 49542 | K153: 18214 | L153: 1103025.89 | M153: =Form!$E$5 -> 0 | N153: -23342.77 | O153: -23342.77
A154: 3090 | B154: St Margaret's CEP School, Collier Street | C154: 87784.7472 | D154: 1 | E154: 0.12 | F154: 636584.59 | G154: 0 | H154: 32957.17 | I154: 7275 | J154: 38655 | K154: 16067.8 | L154: 731539.56 | M154: =Form!$E$5 -> 0 | N154: -71017.77 | O154: -71017.77
A155: 3091 | B155: Laddingford St Mary's CEP School | C155: 75287.0904 | D155: 1 | E155: 0.12 | F155: 524152.79 | G155: 0 | H155: 40418.63 | I155: 30555 | J155: 27026 | K155: 5240 | L155: 627392.42 | M155: =Form!$E$5 -> 0 | N155: -4730.74 | O155: -4730.74 | Q155: Within Tolerance
A156: 3092 | B156: Yalding St Peter & St Paul CEP School | C156: 108298.0104 | D156: 1 | E156: 0.12 | F156: 800052.9 | G156: 0 | H156: 17430.52 | I156: 32325 | J156: 38453 | K156: 14222 | L156: 902483.42 | M156: =Form!$E$5 -> 0 | N156: -91381.16 | O156: -91381.16
A157: 3108 | B157: Ospringe CEP School | C157: 156700.4628 | D157: 1 | E157: 0.12 | F157: 1058119.23 | G157: 0 | H157: 72552.96 | I157: 103910 | J157: 48176 | K157: 23079 | L157: 1305837.19 | M157: =Form!$E$5 -> 0 | N157: -30129.37 | O157: -30129.37
A158: 3109 | B158: Hernhill CEP School | C158: 143436.2592 | D158: 1 | E158: 0.12 | F158: 986945.08 | G158: 0 | H158: 86839.08 | I158: 32010 | J158: 57764 | K158: 31744 | L158: 1195302.16 | M158: =Form!$E$5 -> 0 | N158: -58654.28 | O158: -58654.28
A159: 3111 | B159: Newington CEP School | C159: 165006.1032 | D159: 1 | E159: 0.12 | F159: 1072038.53 | G159: 0 | H159: 106324.33 | I159: 121100 | J159: 41540 | K159: 34048 | L159: 1375050.86 | M159: =Form!$E$5 -> 0 | N159: -186639.96 | O159: -186639.96
A160: 3117 | B160: Teynham Parochial CEP School | C160: 142397.142 | D160: 1 | E160: 0.12 | F160: 1013400.15 | G160: 0 | H160: 22816.95 | I160: 94575 | J160: 33770 | K160: 22080.75 | L160: 1186642.85 | M160: =Form!$E$5 -> 0 | N160: -141643 | O160: -141643
A161: 3120 | B161: Barham CEP School | C161: 136454.2188 | D161: 1 | E161: 0.12 | F161: 961618.04 | G161: 0 | H161: 48874.45 | I161: 46495 | J161: 51459 | K161: 28672 | L161: 1137118.49 | M161: =Form!$E$5 -> 0 | N161: -77882.02 | O161: =N161-M161 -> -77882.02 | P161: =O161/M161 ->  | Q161: =IF(AND(O161<$Q$2,O161>-$Q$2),"Within Tolerance",IF(AND(P161<$R$2,P161>-$R$2),"Within Tolerance",O161)) -> 
A162: 3122 | B162: Bridge and Patrixbourne CEP School | C162: 244890.0888 | D162: 1 | E162: 0.12 | F162: 1815688 | G162: 0 | H162: 78663.74 | I162: 16472 | J162: 94855 | K162: 35072 | L162: 2040750.74 | M162: =Form!$E$5 -> 0 | N162: -14111.31 | O162: -14111.31
A163: 3123 | B163: Chislet CEP School | C163: 78819.6744 | D163: 1 | E163: 0.12 | F163: 548832.92 | G163: 0 | H163: 48436.7 | I163: 22525 | J163: 30923 | K163: 6113 | L163: 656830.62 | M163: =Form!$E$5 -> 0 | N163: -131081.26 | O163: -131081.26
A164: 3126 | B164: Littlebourne CEP School | C164: 76221.162 | D164: 1 | E164: 0.12 | F164: 549286.29 | G164: 0 | H164: 3420.06 | I164: 37830 | J164: 33412 | K164: 11228 | L164: 635176.35 | M164: =Form!$E$5 -> 0 | N164: -38421.47 | O164: -38421.47
A165: 3129 | B165: St Alphege CEI School | C165: 154224.6504 | D165: 1 | E165: 0.12 | F165: 983495.83 | G165: 0 | H165: 136054.59 | I165: 44725 | J165: 86370 | K165: 34560 | L165: 1285205.42 | M165: =Form!$E$5 -> 0 | N165: -147580.56 | O165: -147580.56
A166: 3130 | B166: Wickhambreaux CEP School | C166: 86462.9028 | D166: 1 | E166: 0.12 | F166: 595860 | G166: 0 | H166: 60942.19 | I166: 18915 | J166: 35201 | K166: 9606 | L166: 720524.19 | M166: =Form!$E$5 -> 0 | N166: -62805.19 | O166: -62805.19
A167: 3136 | B167: Brabourne CEP School | C167: 76079.2056 | D167: 1 | E167: 0.12 | F167: 540118.39 | G167: 0 | H167: 37707.99 | I167: 16675 | J167: 34702 | K167: 4790 | L167: 633993.38 | M167: =Form!$E$5 -> 0 | N167: -31730.61 | O167: -31730.61
A168: 3137 | B168: Brookland CEP School | C168: 74183.1024 | D168: 1 | E168: 0.12 | F168: 513443.52 | G168: 0 | H168: 41360 | I168: 22160 | J168: 29253 | K168: 11976 | L168: 618192.52 | M168: =Form!$E$5 -> 0 | N168: -32717.83 | O168: -32717.83
A169: 3138 | B169: St Mary's CEP School, Chilham | C169: 73730.2416 | D169: 1 | E169: 0.12 | F169: 509434.38 | G169: 0 | H169: 36904.3 | I169: 29795 | J169: 29927 | K169: 8358 | L169: 614418.68 | M169: =Form!$E$5 -> 0 | N169: -20732.52 | O169: -20732.52
A170: 3139 | B170: High Halden CEP School | C170: 87166.3584 | D170: 1 | E170: 0.12 | F170: 585616.65 | G170: 0 | H170: 62367.67 | I170: 23878 | J170: 35437 | K170: 19087 | L170: 726386.32 | M170: =Form!$E$5 -> 0 | N170: -63484.7 | O170: -63484.7
A171: 3145 | B171: Woodchurch CEP School | C171: 126580.2852 | D171: 1 | E171: 0.12 | F171: 843220.07 | G171: 0 | H171: 84944.64 | I171: 73748 | J171: 40697 | K171: 12226 | L171: 1054835.71 | M171: =Form!$E$5 -> 0 | N171: -99365.04 | O171: -99365.04
A172: 3146 | B172: Bodsham CEP School | C172: 69312.2988 | D172: 1 | E172: 0.12 | F172: 512703.22 | G172: 0 | H172: 21511.27 | I172: 7275 | J172: 30083 | K172: 6030 | L172: 577602.49 | M172: =Form!$E$5 -> 0 | N172: -65819.38 | O172: -65819.38
A173: 3149 | B173: St Martin's CEP School, Folkestone | C173: 147199.446 | D173: 1 | E173: 0.12 | F173: 985954.4 | G173: 0 | H173: 110432.65 | I173: 59380 | J173: 51559 | K173: 19336 | L173: 1226662.05 | M173: =Form!$E$5 -> 0 | N173: -63898.4 | O173: -63898.4
A174: 3150 | B174: St Peter's CEP School - Shepway | C174: 100830.876 | D174: 1 | E174: 0.12 | F174: 668767.21 | G174: 0 | H174: 78916.09 | I174: 61590 | J174: 29944 | K174: 1040 | L174: 840257.3 | M174: =Form!$E$5 -> 0 | N174: -2570.19 | O174: -2570.19 | Q174: Within Tolerance
A175: 3153 | B175: Seabrook CEP School | C175: 79898.5128 | D175: 1 | E175: 0.12 | F175: 561221.67 | G175: 0 | H175: 45381.27 | I175: 24100 | J175: 34609 | K175: 509 | L175: 665820.94 | M175: =Form!$E$5 -> 0 | N175: -12453.95 | O175: -12453.95
A176: 3154 | B176: Lyminge CEP School | C176: 123510.9552 | D176: 1 | E176: 0.12 | F176: 897429.79 | G176: 0 | H176: 32553.17 | I176: 24120 | J176: 46995 | K176: 28160 | L176: 1029257.96 | M176: =Form!$E$5 -> 0 | N176: -181788.61 | O176: -181788.61
A177: 3155 | B177: Lympne CEP School | C177: 127760.6904 | D177: 1 | E177: 0.12 | F177: 920095 | G177: 0 | H177: 11333.42 | I177: 27105 | J177: 60315 | K177: 45824 | L177: 1064672.42 | M177: =Form!$E$5 -> 0 | N177: -77208.2 | O177: -77208.2
A178: 3158 | B178: Stelling Minnis CEP School | C178: 81626.6928 | D178: 1 | E178: 0.12 | F178: 540524.06 | G178: 0 | H178: 71683.12 | I178: 20770 | J178: 31034 | K178: 16211.26 | L178: 680222.44 | M178: =Form!$E$5 -> 0 | N178: -82645.41 | O178: -82645.41
A179: 3159 | B179: Stowting CEP School | C179: 85177.5276 | D179: 1 | E179: 0.12 | F179: 577664.54 | G179: 0 | H179: 55913.19 | I179: 25745 | J179: 36518 | K179: 13972 | L179: 709812.73 | M179: =Form!$E$5 -> 0 | N179: -49579.83 | O179: -49579.83
A180: 3160 | B180: Selsted CEP School | C180: 77019.8676 | D180: 1 | E180: =IF(D180=1,0.12,IF(D180=4,0.085,0.075)) -> 0.12 | F180: 560342.82 | G180: 0 | H180: 15588.41 | I180: 18155 | J180: 36768 | K180: 10978 | L180: 641832.23 | M180: =Form!$E$5 -> 0 | N180: -59706.5 | O180: -59706.5
A181: 3167 | B181: Eastry CEP School | C181: =IF(D181=1,L181*0.12,IF(D181=3,L181*0.085,L181*0.075)) -> 132208.2048 | D181: 1 | E181: 0.12 | F181: 887074.96 | G181: 0 | H181: 84859.08 | I181: 75995 | J181: 36341 | K181: 17465 | L181: 1101735.04 | M181: =Form!$E$5 -> 0 | N181: -67542.41 | O181: -67542.41
A182: 3168 | B182: Goodnestone CEP School | C182: 65410.7928 | D182: 1 | E182: 0.12 | F182: 435533.47 | G182: 0 | H182: 62994.47 | I182: 9805 | J182: 33314 | K182: 3443 | L182: 545089.94 | M182: =Form!$E$5 -> 0 | N182: -47406.45 | O182: -47406.45
A183: 3169 | B183: Guston CEP School | C183: 115560.27 | D183: 1 | E183: 0.12 | F183: 807181.94 | G183: 0 | H183: 45024.31 | I183: 46835 | J183: 44500 | K183: 19461 | L183: 963002.25 | M183: =Form!$E$5 -> 0 | N183: -24829.35 | O183: -24829.35
A184: 3171 | B184: Nonington CEP School | C184: 56358.7452 | D184: 1 | E184: 0.12 | F184: 345923.15 | G184: 0 | H184: 65882.06 | I184: 30555 | J184: 17690 | K184: 9606 | L184: 469656.21 | M184: =Form!$E$5 -> 0 | N184: -87404.77 | O184: -87404.77
A185: 3175 | B185: Sibertswold CEP School at Shepherdswell | C185: 132338.244 | D185: 1 | E185: 0.12 | F185: 930038 | G185: 0 | H185: 52259.7 | I185: 43585 | J185: 49800 | K185: 27136 | L185: 1102818.7 | M185: =Form!$E$5 -> 0 | N185: -62191.42 | O185: -62191.42
A186: 3178 | B186: Birchington CEP School | C186: 309277.05 | D186: 1 | E186: 0.12 | F186: 2156708.51 | G186: 0 | H186: 88088.24 | I186: 181700 | J186: 69404 | K186: 81408 | L186: 2577308.75 | M186: =Form!$E$5 -> 0 | N186: -288842.82 | O186: -288842.82
A187: 3179 | B187: Holy Trinity & St Johns C of E Primary School | C187: 369360.3864 | D187: 1 | E187: 0.12 | F187: 2423125.19 | G187: 0 | H187: 239842.03 | I187: 334330 | J187: 49218 | K187: 31488 | L187: 3078003.22 | M187: =Form!$E$5 -> 0 | N187: -103255.52 | O187: -103255.52
A188: 3181 | B188: St Saviour's CEJ School, Westgate-on-Sea | C188: 238165.506 | D188: 1 | E188: 0.12 | F188: 1695914.57 | G188: 0 | H188: 28212.98 | I188: 186600 | J188: 19713 | K188: 54272 | L188: 1984712.55 | M188: =Form!$E$5 -> 0 | N188: -196237.45 | O188: -196237.45
A189: 3182 | B189: Minster CEP School | C189: 257100.2688 | D189: 1 | E189: 0.12 | F189: 1763749.88 | G189: 0 | H189: 128740.36 | I189: 133055 | J189: 81885 | K189: 35072 | L189: 2142502.24 | M189: =Form!$E$5 -> 0 | N189: -120299.74 | O189: -120299.74
A190: 3183 | B190: Monkton CEP School | C190: 86553.9552 | D190: 1 | E190: 0.12 | F190: 584307.06 | G190: 0 | H190: 43367.14 | I190: 39240 | J190: 32419 | K190: 21949.76 | L190: 721282.96 | M190: =Form!$E$5 -> 0 | N190: -53889.6 | O190: -53889.6
A191: 3186 | B191: St Nicholas At Wade CEP School | C191: 126495.102 | D191: 1 | E191: 0.12 | F191: 901358.11 | G191: 0 | H191: 59762.74 | I191: 42485 | J191: 37047 | K191: 13473 | L191: 1054125.85 | M191: =Form!$E$5 -> 0 | N191: -93047.59 | O191: -93047.59
A192: 3198 | B192: Frittenden CEP School | C192: 83124.1908 | D192: 1 | E192: 0.12 | F192: 577968.11 | G192: 0 | H192: 37479.48 | I192: 31630 | J192: 32650 | K192: 12974 | L192: 692701.59 | M192: =Form!$E$5 -> 0 | N192: -72198.11 | O192: -72198.11
A193: 3199 | B193: Egerton CEP School | C193: 129696.606 | D193: 1 | E193: 0.12 | F193: 928029.99 | G193: 0 | H193: 35562.06 | I193: 56745 | J193: 49365 | K193: 11103 | L193: 1080805.05 | M193: =Form!$E$5 -> 0 | N193: -67774.83 | O193: -67774.83
A194: 3201 | B194: St Lawrence CEP School | C194: 63466.308 | D194: 1 | E194: 0.12 | F194: 459160.83 | G194: 0 | H194: 27135.07 | I194: 4365 | J194: 31364 | K194: 6861 | L194: 528885.9 | M194: =Form!$E$5 -> 0 | N194: -31414.64 | O194: -31414.64
A195: 3282 | B195: Boughton-under-Blean and Dunkirk Primary School | C195: 139203.1104 | D195: 1 | E195: 0.12 | F195: 961393.92 | G195: 0 | H195: 53392 | I195: 84260 | J195: 42642 | K195: 18338 | L195: 1160025.92 | M195: =Form!$E$5 -> 0 | N195: -31456.45 | O195: -31456.45
A196: 3284 | B196: Lady Joanna Thornhill (Endowed) Primary School | C196: 272867.07 | D196: 1 | E196: 0.12 | F196: 1905201 | G196: 0 | H196: 155995.25 | I196: 81035 | J196: 89165 | K196: 42496 | L196: 2273892.25 | M196: =Form!$E$5 -> 0 | N196: -26381 | O196: -26381
A197: 3289 | B197: St Peter's Methodist Primary School, Canterbury | C197: 154846.9896 | D197: 1 | E197: 0.12 | F197: 1050291.56 | G197: 0 | H197: 100357.02 | I197: 72750 | J197: 48156 | K197: 18837 | L197: 1290391.58 | M197: =Form!$E$5 -> 0 | N197: -206669.73 | O197: -206669.73
A198: 3294 | B198: St Matthew's High Brooms CEP School | C198: 261492.2628 | D198: 1 | E198: 0.12 | F198: 1718703.21 | G198: 0 | H198: 146903.98 | I198: 232840 | J198: 43791 | K198: 36864 | L198: 2179102.19 | M198: =Form!$E$5 -> 0 | N198: -141685.16 | O198: -141685.16
A199: 3295 | B199: Herne CE Infant & Nursery School | C199: 232488.0144 | D199: 1 | E199: 0.12 | F199: 1443151.97 | G199: 0 | H199: 276334.15 | I199: 37385 | J199: 133169 | K199: 47360 | L199: 1937400.12 | M199: =Form!$E$5 -> 0 | N199: -408075.73 | O199: -408075.73
A200: 3296 | B200: Langafel CEP School | C200: 289812.1416 | D200: 1 | E200: 0.12 | F200: 1822506.3 | G200: 0 | H200: 336646.88 | I200: 156084 | J200: 61976 | K200: 37888 | L200: 2415101.18 | M200: =Form!$E$5 -> 0 | N200: -354126.05 | O200: -354126.05
... 100 more rows
